[Event "Charlotte IM-D May 2022"]
[Site "Charlotte"]
[Date "2022.05.06"]
[Round "4.5"]
[White "Wang, Eigen"]
[Black "Chen, Ryo"]
[Result "1-0"]
[ECO "E60"]
[WhiteElo "2269"]
[BlackElo "2265"]
[Annotator "TA"]
[PlyCount "120"]
[EventDate "2022.05.04"]
[EventType "tourn"]
[EventCountry "USA"]
[SourceTitle "playchess.com"]
[Source "ChessBase"]
[SourceQuality "1"]
[TimeControl "5400+30"]

{[%evp 9,120,16,34,30,9,9,12,15,14,15,28,11,29,3,32,32,25,29,31,19,22,27,26,37,30,40,41,-4,-31,-95,-106,-137,-141,-129,-132,-141,-35,-31,-41,-19,0,-117,-122,-126,-99,-110,-108,-105,-112,-121,-135,-130,-125,-132,-62,-63,-64,-75,-68,-83,0,-79,-37,-35,-44,-81,-35,-47,36,28,146,145,1345,468,918,475,442,398,794,745,1060,1091,956,939,29985,29978,29982,1256,1227,1186,1421,1129,29952,29953,29951,29940,1370,1025,29961,29964,29971,29972,29973,29974,29974,29974,29976,29976,29975,29974,29973,29974,29987]} 1. d4 {[%emt 0:00:05]} Nf6 {[%emt 1:31:00]} 2. c4 {[%emt 0:00:06]} g6 {[%emt 0:00:00]} 3. Nf3 {[%emt 0:00:08]} Bg7 {[%emt 0:00:00]} 4. e3 {[%emt 0:00:08]} O-O {[%emt 0:00:00]} 5. Be2 {[%emt 0:00:05]} c5 {[%emt 0:00:00]} 6. d5 {[%emt 0:00:07] E60: King's Indian: Unusual lines and Fianchetto Variation without Nc3.} e6 {[%emt 0:00:00]} 7. Nc3 {[%emt 0:00:08]} exd5 {[%emt 0:00:00]} 8. cxd5 {[%emt 0:00:06] The position is equal.} d6 {[%emt 0:00:00]} 9. O-O {[%emt 0:00:10]} Re8 {[%emt 0:00:00]} 10. Nd2 {[%emt 0:01:04]} Na6 {[%emt 0:00:00]} 11. Nc4 {[%emt 0:02:47]} Nc7 {[%emt 0:00:00]} 12. a4 {[%emt 0:02:27] Prevents b5.} b6 {[%emt 0:00:00]} 13. f3 {[%emt 0:03:17]} Ba6 {[%emt 0:00:00]} 14. e4 {[%emt 0:08:08]} Bxc4 {[%emt 0:00:00]} 15. Bxc4 {[%emt 0:02:58]} a6 {[%emt 0:00:00]} 16. Bg5 {[%emt 0:15:08]} Qc8 {[%emt 0:00:00]} 17. Qd2 {[%emt 0:04:30]} Rb8 {[%emt 0:00:00] [#]} 18. Qf4 $146 {[%emt 0:04:57]} ({Predecessor:} 18. Be2 b5 19. Nd1 Nd7 20. Bf4 Ne5 21. Bh6 Bh8 22. f4 Ng4 23. Bxg4 Qxg4 24. Nf2 {½-½ (54) Yu,Y (2761)-Sevian,S (2642) Astana 2019}) 18... Nd7 {[%emt 0:00:00]} 19. Be2 {[%emt 0:06:01]} (19. Qxd6 $2 Be5 20. Qc6 Bd4+ 21. Kh1 Ne5 22. Bxa6 Nxa6 $19) (19. Qg3 $15) 19... f6 $1 $17 {[%emt 0:00:00]} 20. Bh4 {[%emt 0:02:57]} g5 {[%emt 0:00:00]} 21. Qxd6 {[%emt 0:01:28]} gxh4 {[%emt 0:00:00]} 22. Qf4 {[%emt 0:00:12] [#]} Ne5 {[%emt 0:00:00]} (22... b5 $1 $17 23. axb5 Nxb5 24. Bxb5 axb5 25. Qxh4 c4) 23. Qxh4 $15 {[%emt 0:02:23]} Ng6 {[%emt 0:00:00]} 24. Qg3 {[%emt 0:00:27]} f5 {[%emt 0:00:00] White must now prevent ...f4.} 25. exf5 {[%emt 0:09:42] [#]} (25. f4 $1 $11) 25... Qxf5 $1 $17 {[%emt 0:00:00] Strongly threatening ...Be5.} 26. Qxc7 {[%emt 0:03:25]} Rbc8 {[%emt 0:00:00]} 27. Qxb6 {[%emt 0:05:20] And now Ne4 would win.} Bxc3 {[%emt 0:00:00][%mdl 64] Remove Defender} 28. bxc3 {[%emt 0:03:06]} Rxe2 {[%emt 0:00:00]} 29. Rae1 {[%emt 0:00:36]} ({Avoid the trap} 29. Qxa6 $2 Nf4 30. Qh6 Rxg2+ 31. Kh1 Rg6 $19) 29... Nf4 {[%emt 0:01:23]} 30. Rxe2 {[%emt 0:02:54]} Nxe2+ {[%emt 0:00:15]} 31. Kh1 {[%emt 0:00:43] [#]} Qxd5 {[%emt 0:03:56]} (31... Qg6 $1 $17 {[%cal Rg6b6]} 32. Qb7 (32. Qxg6+ hxg6 33. c4 Rb8 $17) 32... Re8) 32. Qxa6 $15 {[%emt 0:02:14]} Re8 {[%emt 0:00:44]} 33. Qb5 {[%emt 0:04:45]} Kf7 {[%emt 0:02:35]} 34. Qb1 {[%emt 0:01:45]} Kg8 {[%emt 0:01:10]} 35. Qb5 $1 {[%emt 0:00:47]} Qe5 {[%emt 0:02:09]} (35... Qh5 $5 {[%cal Re2g3]} 36. Rb1 Qe5 37. Qc4+ Kh8 $17) 36. a5 {[%emt 0:05:13]} Nxc3 {[%emt 0:00:50]} 37. Qc4+ {[%emt 0:00:55]} Kh8 {[%emt 0:01:22]} ({Better is} 37... Kg7 $17 {Threatens to win with ...Qd4.} 38. Qh4 Qd4 39. Qg3+ Kh8) 38. a6 {[%emt 0:01:02]} Qd4 {[%emt 0:01:41]} (38... Re7 $15) 39. Qf7 $14 {[%emt 0:00:13][%mdl 1024] White has compensation.} (39. Qxd4+ cxd4 40. g3 d3 $19) 39... Qe3 {[%emt 0:01:03]} (39... Ra8 $11 {remains equal.}) 40. a7 $16 {[%emt 0:00:56]} Ne2 $2 {[%emt 0:02:22][%mdl 8192] This move loses the game for Black.} (40... Nb5 $16) 41. Qf6+ $18 {[%emt 0:01:49]} Kg8 {[%emt 0:00:30]} 42. Qc6 {[%emt 0:00:30]} Kg7 {[%emt 0:00:00]} 43. f4 Nd4 $2 {[%emt 0:01:00]} (43... Nxf4 44. a8=Q Rxa8) 44. Qb7+ {[%emt 0:04:56][%mdl 64] Skewer} Kf6 {[%emt 0:00:00]} 45. a8=Q {[%emt 0:00:00]} Rxa8 {[%emt 0:00:00]} 46. Qxa8 {[%emt 0:00:29][%mdl 4096] Endgame Qf8+ would kill now. KQR-KQN} Ne2 {[%emt 0:00:05]} 47. Qc6+ {[%emt 0:00:39]} Kg7 {[%emt 0:01:55]} 48. Qf3 {[%emt 0:00:23]} (48. Rb1 $142 Qe7 49. Rb7 Qf7 50. Qd5 Qxb7 51. Qxb7+ Kg6 52. Qe4+ Kf7 53. Qxe2) 48... Qxf3 {[%emt 0:00:00]} 49. Rxf3 {[%emt 0:00:07] KR-KN} c4 {[%emt 0:00:00]} 50. Re3 {[%emt 0:00:18]} Nxf4 {[%emt 0:01:30]} 51. Re4 {[%emt 0:00:11]} Nd3 {[%emt 0:00:30]} 52. Rxc4 {[%emt 0:00:06]} Ne5 {[%emt 0:00:00]} 53. Rc5 {[%emt 0:00:17]} Ng6 {[%emt 0:00:00]} 54. g3 {[%emt 0:00:12] White mates.} h6 {[%emt 0:00:00]} 55. Kg2 {[%emt 0:00:14]} Ne7 {[%emt 0:02:00]} 56. Kf3 {[%emt 0:00:27]} Kf6 {[%emt 0:00:00]} 57. Kg4 Kg6 {[%emt 0:01:00]} 58. Ra5 {[%emt 0:02:31]} Ng8 {[%emt 0:00:00]} 59. Ra6+ {[%emt 0:00:23]} Nf6+ {[%emt 0:00:00]} 60. Kf4 {[%emt 0:00:09]} Kh5 {[%emt 0:00:00] Weighted Error Value: White=0.20 (precise) /Black=0.70} 1-0

[Event "Charlotte IM-D May 2022"]
[Site "Charlotte"]
[Date "2022.05.07"]
[Round "5.1"]
[White "Chen, Ryo"]
[Black "Rosenberg, Evan S"]
[Result "1-0"]
[ECO "C60"]
[WhiteElo "2265"]
[BlackElo "2035"]
[Annotator "TA"]
[PlyCount "101"]
[EventDate "2022.05.04"]
[EventType "tourn"]
[EventCountry "USA"]
[SourceTitle "playchess.com"]
[Source "ChessBase"]
[SourceQuality "1"]
[TimeControl "5400+30"]

{[%evp 14,101,22,18,48,15,8,8,19,-9,-14,-4,-9,-19,0,0,86,85,118,15,94,96,95,97,91,50,79,31,26,35,46,26,31,-34,0,-3,0,0,0,-13,7,12,136,145,438,420,481,145,147,129,126,18,334,336,317,332,306,267,329,324,267,244,213,198,238,232,365,318,504,427,808,721,908,757,2553,3074,4562,1637,1802,1683,29980,29981,29981,288,29982,29983,29990,29991,29996,29997]} 1. e4 {[%emt 0:00:30]} e5 {[%emt 0:00:35]} 2. Nf3 {[%emt 0:00:01]} Nc6 {[%emt 0:00:35]} 3. Bb5 {[%emt 1:31:29]} Bb4 4. O-O {[%emt 0:00:00]} Nge7 {[%emt 0:01:29]} 5. c3 {[%emt 0:00:00]} Ba5 {[%emt 0:00:15]} 6. d4 {[%emt 0:00:00]} exd4 {[%emt 0:00:12]} 7. cxd4 {[%emt 0:00:00]} d5 {[%emt 0:00:15]} 8. e5 {[%emt 0:00:00]} Bg4 {[%emt 0:00:07] C60: Ruy Lopez: Unusual Black 3rd moves and 3...g6.} 9. h3 {[%emt 0:00:00]} (9. Bg5 {looks sharper.} O-O 10. Bxc6 bxc6 11. Qa4) 9... Bxf3 {[%emt 0:00:06]} 10. Qxf3 {[%emt 0:00:00]} O-O {[%emt 0:00:06] The position is equal.} 11. Be3 {[%emt 0:00:00]} f6 {[%emt 0:00:08]} 12. exf6 {[%emt 0:00:00]} Rxf6 {[%emt 0:03:31]} 13. Qg4 {[%emt 0:00:00]} Qd6 {[%emt 0:00:07]} 14. Nc3 {[%emt 0:00:00] [#]} Nb4 $146 {[%emt 0:26:56]} (14... Rg6 $11 15. Qd1 Bb6) ({Predecessor:} 14... Raf8 15. Bd3 Nf5 16. Bg5 R6f7 17. Ne2 h6 18. Bf4 Qe6 19. Bxf5 Rxf5 20. Be3 Qd6 {1-0 (47) Ahmadzada,A (2025)-Arnaudov,P (2462) Varna 2015}) 15. Bg5 $1 $16 {[%emt 0:00:00]} Rf7 {[%emt 0:00:30]} 16. a3 {[%emt 0:00:00]} (16. Bd7 $1 $16 {[%cal Rd7e6]}) 16... Nc2 {[%emt 0:00:30]} (16... Nbc6 $1 $11 {keeps the balance.}) 17. Rac1 {[%emt 0:00:00]} Bxc3 {[%emt 0:00:30]} 18. Rxc2 {[%emt 0:00:00]} (18. bxc3 Nxa3 19. Bd7 h5) 18... Ba5 {[%emt 0:06:42][%cal Bc3a5,Ba5b6,Bb6d4][%mdl 32]} 19. Bd7 {[%emt 0:00:00] This bishop pair is nice.} Qg6 {[#]} 20. Re2 {[%emt 0:00:00]} (20. Be6 $1 $16 {Strongly threatening Rc5.} Qxc2 21. Bxe7) 20... h5 $14 21. Qh4 {[%emt 0:00:00]} Nf5 {[%emt 0:20:27]} 22. Bxf5 {[%emt 0:00:00]} Rxf5 {[%emt 0:00:09]} 23. f4 {[%emt 0:00:00]} (23. Bd8 $14) 23... Bb6 {[%emt 0:02:56]} (23... Re8 $5 {[%cal Re8e2]} 24. Qf2 Re4 $15) 24. g4 {[%emt 0:00:00]} Bxd4+ {[%emt 0:01:51]} 25. Kg2 {[%emt 0:00:00]} Rff8 {[%emt 0:04:22]} 26. f5 {[%emt 0:00:00]} Qa6 {[%emt 0:00:12]} 27. Rfe1 {[%emt 0:00:00]} Qb6 {[%emt 0:05:30]} (27... hxg4 $11 {remains equal.} 28. hxg4 Bf6) 28. Qxh5 $16 {[%emt 0:00:00] Be7 is the strong threat.} c5 $2 {[%emt 0:06:45][%mdl 8192]} (28... Rf7 $16 {was worth a try.} 29. Bh4 Qh6) 29. Be7 {[%emt 0:00:00]} Rf7 {[%emt 0:02:47]} 30. Qg6 $2 {[%emt 0:00:00]} (30. Re6 $18 {and the rest is easy.} Qxb2+ 31. R1e2) 30... Re8 {[%emt 0:05:23]} 31. Bd6 {[%emt 0:02:06] White is more active.} Re4 {[%emt 0:03:23] [#] White must now prevent ...Qb5.} 32. b4 $40 {[%emt 0:03:50][%mdl 128] Black needs to defend precisely.} ({And not} 32. Rxe4 dxe4 33. b4 Bf6 $17) (32. g5 $1 $16) 32... Rf6 $2 {[%emt 0:05:52][%mdl 8192]} (32... Bf6 $1 $11 {and Black stays safe.} 33. Bxc5 Qd8) 33. Rxe4 $18 {[%emt 0:01:40] Really sharp!} dxe4 {[%emt 0:00:03]} 34. Qe8+ {[%emt 0:00:16]} Kh7 {[%emt 0:00:04]} 35. Be7 {[%emt 0:01:30]} Qc6 {[%emt 0:03:08]} 36. Qxc6 {[%emt 0:00:31]} Rxc6 {[%emt 0:00:01]} 37. Bxc5 {[%emt 0:00:22]} Bxc5 {[%emt 0:01:01]} 38. bxc5 {[%emt 0:00:13]} Rxc5 {[%emt 0:00:02]} 39. Rxe4 {[%emt 0:00:12][%mdl 4096] Endgame And now Re7 would win. KR-KR} Rc2+ {[%emt 0:01:44]} (39... Kg8 $142 40. Re7 Rc2+ 41. Kg3 Rb2) 40. Kf3 {[%emt 0:00:10]} b5 {[%emt 0:01:25]} (40... Kg8 $142 41. h4 Rc3+ 42. Re3 Rc7) 41. Kf4 {[%emt 0:02:07]} a5 {[%emt 0:00:10]} (41... Kg8 $142 42. a4 Rc5 43. axb5 Rxb5) 42. Re5 {[%emt 0:00:12]} Rb2 {[%emt 0:00:13]} 43. a4 {[%emt 0:00:43]} bxa4 {[%emt 0:01:20]} 44. Rxa5 {[%emt 0:00:04]} Ra2 {[%emt 0:00:05]} 45. Kg5 {[%emt 0:07:04]} (45. g5 $142 g6 46. Ra7+ Kg8 47. fxg6) 45... a3 46. Ra7 {[%emt 0:00:00] Threatening mate with f6.} Ra1 {[%emt 0:01:18]} 47. f6 {[%emt 0:00:00]} a2 {[%emt 0:00:14]} 48. Rxg7+ {[%emt 0:00:00]} Kh8 {[%emt 0:00:02]} 49. Ra7 {[%emt 0:00:00] White mates.} Rh1 {[%emt 0:00:18]} 50. Rxa2 {[%emt 0:00:00]} Rxh3 {[%emt 0:00:03]} 51. Kg6 {[%emt 0:00:00] Weighted Error Value: White=0.36/Black=0.70} 1-0

[Event "Charlotte IM-D May 2022"]
[Site "Charlotte"]
[Date "2022.05.07"]
[Round "6.1"]
[White "Rosenberg, Evan S"]
[Black "Woodward, Andy"]
[Result "0-1"]
[ECO "D70"]
[WhiteElo "2035"]
[BlackElo "2354"]
[Annotator "TA"]
[PlyCount "60"]
[EventDate "2022.05.04"]
[EventType "tourn"]
[EventCountry "USA"]
[SourceTitle "playchess.com"]
[Source "ChessBase"]
[SourceQuality "1"]
[TimeControl "5400+30"]

{[%evp 15,60,46,69,7,26,14,18,17,16,28,7,-29,-18,-75,-77,-87,-82,-96,0,0,0,0,-31,-996,-1001,-998,-1000,-770,-976,-968,-888,-1286,-1283,-1286,-1279,-1272,-1267,-1187,-1173,-5685,-851,-787,-390,-5589,-2728,-1609,-1463]} 1. d4 {[%emt 0:00:04]} Nf6 {[%emt 1:31:00]} 2. Nf3 {[%emt 1:31:26]} d5 {[%emt 0:00:30]} 3. c4 {[%emt 0:00:00]} g6 {[%emt 0:00:00]} 4. cxd5 {[%emt 0:00:00]} Nxd5 {[%emt 0:00:00]} 5. e4 {[%emt 0:01:30]} Nb6 {[%emt 0:00:00]} 6. Be3 {[%emt 0:00:00]} Bg7 {[%emt 0:00:00]} 7. Nc3 {[%emt 0:00:00]} O-O {[%emt 0:00:00]} 8. Qd2 {[%emt 0:00:00]} Bg4 {[%emt 0:00:00]} 9. h3 {[%emt 0:00:00] D70: Grünfeld: Unusual White 3rd moves (met by ...d5).} (9. h4 $14) 9... Bxf3 $11 {[%emt 0:00:00]} 10. gxf3 {[%emt 0:00:00]} Nc6 {[%emt 0:00:00][%cal Rc6d4]} 11. O-O-O {[%emt 0:00:00] [#] The position is equal.} Qd6 $146 {[%emt 0:00:00]} ({Predecessor:} 11... e6 12. e5 Ne7 13. Bg5 f6 14. exf6 Bxf6 15. Bh6 Rf7 16. Ne4 Bg7 17. Bxg7 Kxg7 {1-0 (25) Paprocki,J (2169)-Tabaczka,J (1750) Poland 2016}) 12. h4 {[%emt 0:00:00]} Rfd8 {[%emt 0:00:00][%cal Rc6d4]} 13. Nb5 {[%emt 0:00:00]} Qd7 {[%emt 0:00:00]} 14. h5 {[%emt 0:00:00]} (14. d5 $11 Ne5 15. Qc2) 14... a6 $17 {[%emt 0:00:00]} 15. hxg6 {[%emt 0:00:00]} hxg6 {[%emt 0:00:00]} 16. Bh6 {[%emt 0:00:00] [#] Threatens to win with Bxg7.} Bxd4 {[%emt 0:00:00]} (16... axb5 $2 17. Bxg7 Nxd4 18. Bxd4 $18) (16... Bh8 $1 $17 17. Nc3 (17. Bh3 e6 $17) 17... Qxd4 18. Qxd4 Rxd4) 17. Bh3 $1 $15 {[%emt 0:00:00] A strong pair of Bishops.} e6 {[%emt 0:00:00]} 18. Nxd4 {[%emt 0:00:00]} Qxd4 {[%emt 0:00:00]} 19. Qg5 $2 {[%emt 0:00:00][%mdl 8192] White does not recover from this.} (19. Qxd4 $15 Rxd4 20. Bg2) 19... Qc4+ $19 {[%emt 0:00:00]} 20. Kb1 {[%emt 0:00:00]} Rxd1+ {[%emt 0:00:00]} (20... Nd4 21. Qf6 Qc2+ 22. Ka1) 21. Rxd1 {[%emt 0:00:00]} Nb4 {[%emt 0:00:00]} 22. Rd8+ {[%emt 0:00:00]} Kh7 {[%emt 0:00:00] ( -> ...Rxd8)} 23. Bf8 {[%emt 0:00:00]} Qxa2+ {[%emt 0:00:00]} 24. Kc1 {[%emt 0:00:00]} Qa1+ {[%emt 0:00:00]} 25. Kd2 {[%emt 0:00:00]} Rxd8+ {[%emt 0:00:00]} 26. Qxd8 {[%emt 0:00:00]} Qxb2+ {[%emt 0:00:00]} 27. Ke3 {[%emt 0:11:00]} Qc1+ {[%emt 0:00:00]} 28. Ke2 {[%emt 0:00:00]} Qc2+ {[%emt 0:00:00]} (28... Qc4+ $142 29. Ke3 {[#]} N6d5+ $1 {[%mdl 512]} 30. exd5 Nxd5+ 31. Kd2 Qc3+ 32. Kd1 Qxf3+ 33. Ke1 Qc3+ 34. Kd1 Qxh3) 29. Ke3 $2 {[%emt 0:00:00] [#]} (29. Qd2 a5 30. Qxc2 Nxc2 31. Kd3 Nb4+ 32. Kc3) 29... N6d5+ $1 {[%emt 0:00:00]} 30. exd5 {[%emt 0:00:00]} Nxd5+ {[%emt 0:00:00] Weighted Error Value: White=1.17/Black=0.91} 0-1

[Event "Charlotte IM-D May 2022"]
[Site "Charlotte"]
[Date "2022.05.07"]
[Round "6.2"]
[White "Marek, Matyas"]
[Black "Nakada, Akira"]
[Result "1/2-1/2"]
[WhiteElo "2363"]
[BlackElo "2324"]
[Annotator "TA"]
[PlyCount "39"]
[EventDate "2022.05.04"]
[EventType "tourn"]
[EventCountry "USA"]
[SourceTitle "playchess.com"]
[Source "ChessBase"]
[SourceQuality "1"]
[TimeControl "5400+30"]

{[%evp 13,14,-2,-26]} 1. Nf3 {[%emt 0:00:08]} Nf6 {[%emt 0:00:23]} 2. g3 {[%emt 0:00:04]} d5 {[%emt 0:00:12]} 3. Bg2 {[%emt 0:00:03]} e6 {[%emt 0:01:27]} 4. O-O {[%emt 0:00:05]} c5 {[%emt 0:00:02]} 5. d3 {[%emt 0:00:05]} Nc6 {[%emt 0:00:07]} 6. Nbd2 {[%emt 0:00:06]} Be7 {[%emt 0:00:06]} 7. e4 {[%emt 0:00:04]} O-O {[%emt 0:00:14] [#]} {Predecessor:} 8. Re1 $146 {C00: French: Unusual White 2nd moves.} b5 9. a4 b4 10. exd5 Nxd5 11. Nc4 Bb7 12. h4 h6 13. Nfe5 Nxe5 14. Nxe5 Qc7 15. Bd2 Bf6 16. Qe2 Ne7 17. Bxb7 Qxb7 18. Qe4 Qxe4 19. Rxe4 Rfd8 20. Be3 {½-½ (20) Artemiev,V (2700)-Matlakov,M (2674) Kazan 2022} 1/2-1/2

[Event "Charlotte IM-D May 2022"]
[Site "Charlotte"]
[Date "2022.05.07"]
[Round "6.3"]
[White "Rodriguez Rivera, Pedro"]
[Black "Matros, Alexander"]
[Result "1/2-1/2"]
[ECO "D05"]
[WhiteElo "2197"]
[BlackElo "2339"]
[Annotator "TA"]
[PlyCount "33"]
[EventDate "2022.05.04"]
[EventType "tourn"]
[EventCountry "USA"]
[SourceTitle "playchess.com"]
[Source "ChessBase"]
[SourceQuality "1"]
[TimeControl "5400+30"]

{[%evp 14,20,22,0,0,0,0,-6,19]} 1. d4 {[%emt 0:05:16]} Nf6 {[%emt 0:00:12]} 2. Nf3 {[%emt 0:00:02]} d5 {[%emt 0:00:23]} 3. e3 {[%emt 0:00:02]} c5 {[%emt 0:00:42]} 4. c3 {[%emt 0:00:02]} e6 {[%emt 0:00:31]} 5. Bd3 {[%emt 0:00:03]} Nc6 {[%emt 0:00:26]} 6. Nbd2 {[%emt 0:00:02]} Bd6 {[%emt 0:01:34]} 7. O-O {[%emt 0:01:37]} O-O {[%emt 0:01:11]} 8. Re1 {[%emt 0:00:17] The position is equal.} Qc7 {[%emt 0:02:58] D05: Colle System with ...e6.} 9. dxc5 {[%emt 0:09:40]} Bxc5 {[%emt 0:00:16]} 10. e4 {[%emt 0:00:11]} h6 {[%emt 1:27:17] [#] An even fight not without its subleties.} {Predecessor:} 11. b4 $146 Bd6 12. Bb2 Ne5 13. Nxe5 Bxe5 14. g3 dxe4 15. Nxe4 Nxe4 16. Bxe4 Bf6 17. Qf3 {0-1 (34) Molina,R (2401)-Griffith,K (2341) Chess.com INT 2022} 1/2-1/2

[Event "Charlotte IM-D May 2022"]
[Site "Charlotte"]
[Date "2022.05.07"]
[Round "6.4"]
[White "Wang, Eigen"]
[Black "Zaloznyy, Mike"]
[Result "1-0"]
[ECO "A50"]
[WhiteElo "2269"]
[BlackElo "2125"]
[Annotator "TA"]
[PlyCount "71"]
[EventDate "2022.05.04"]
[EventType "tourn"]
[EventCountry "USA"]
[SourceTitle "playchess.com"]
[Source "ChessBase"]
[SourceQuality "1"]
[TimeControl "5400+30"]

{[%evp 13,71,-3,0,0,7,5,4,4,37,42,36,24,35,21,24,33,30,25,26,12,29,0,-2,-3,21,19,28,19,183,189,186,186,181,188,459,456,544,527,530,538,519,497,941,840,780,827,824,797,908,950,934,936,971,957,1349,1309,1175,1164,1235,1228]} 1. d4 {[%emt 0:00:10]} Nf6 {[%emt 0:00:17]} 2. c4 {[%emt 0:00:06]} b6 {[%emt 0:01:17]} 3. Nc3 {[%emt 0:00:13]} Bb7 {[%emt 0:00:21]} 4. Qc2 {[%emt 0:00:29]} d5 {[%emt 0:00:48]} 5. Nf3 {[%emt 0:01:24]} e6 {[%emt 0:01:29]} 6. Bg5 {[%emt 0:01:35]} Be7 {[%emt 0:03:11]} 7. cxd5 {[%emt 0:04:52]} Nxd5 {[%emt 0:04:58]} 8. Bxe7 {[%emt 0:00:22] A50: Queen's Fianchetto Defence (1 d4 Nf6 2 c4 b6).} Qxe7 {[%emt 0:00:53]} 9. Nxd5 {[%emt 0:01:05]} Bxd5 {[%emt 0:01:40]} 10. e4 {[%emt 0:01:22] The position is equal.} Qb4+ {[%emt 0:04:49] [#]} 11. Qd2 $146 {[%emt 0:06:14]} ({Predecessor:} 11. Nd2 Bc6 12. Bc4 O-O 13. a3 Qd6 14. Nf3 Qf4 15. Nd2 Rd8 16. Qd3 Nd7 17. Qe3 Qxe3+ 18. fxe3 {1-0 (42) Dias,A (2241)-Cardoso Pimenta,C (2037) Curitiba 2013}) 11... Qxd2+ {[%emt 0:02:03]} 12. Nxd2 {[%emt 0:00:04]} Bc6 {[%emt 0:11:55]} 13. Rc1 {[%emt 0:01:04]} Ke7 $1 {[%emt 0:04:06]} 14. Ke2 {[%emt 0:02:51]} Rc8 {[%emt 0:06:30]} 15. Ke3 $36 {[%emt 0:06:43][%mdl 2048] White is pushing.} Bb7 {[%emt 0:00:38]} 16. Nb3 {[%emt 0:04:03]} a5 {[%emt 0:05:03][%cal Ba7a5,Ba5a4][%mdl 32]} 17. Bb5 {[%emt 0:10:32]} a4 {[%emt 0:07:17]} 18. Nd2 {[%emt 0:00:14][%cal Bb3d2,Bd2c4,Bc4b6][%mdl 32]} c6 {[%emt 0:02:29]} 19. Be2 {[%emt 0:56:37]} Nd7 {[%emt 0:03:33]} 20. Rhd1 {[%emt 0:00:00]} e5 $2 {[%emt 0:01:53] [#] Black cannot hold the game after this.} (20... c5 $11 {and Black has nothing to worry.}) 21. dxe5 $1 $18 {[%emt 0:00:00]} Nxe5 {[%emt 0:00:06]} 22. f4 {[%emt 0:00:00]} Nd7 {[%emt 0:00:23]} 23. Nc4 {[%emt 0:00:00] Black must now prevent Bg4.} c5 $2 {[%emt 0:11:48]} (23... Rc7 {was worth a try.} 24. Rxd7+ Rxd7) 24. Bg4 {[%emt 0:00:00] White is clearly winning.} Nf6 {[%emt 0:05:00]} 25. Bxc8 {[%emt 0:00:00]} Rxc8 {[%emt 0:00:25]} 26. Nxb6 {[%emt 0:00:00]} Rb8 {[%emt 0:00:07]} 27. Rxc5 {[%emt 0:00:00]} Bxe4 {[%emt 0:00:44]} (27... Ng4+ $142 28. Ke2 Ba6+ 29. Nc4 Rb4 30. Rc7+ Ke8) 28. Nc8+ {[%emt 0:00:00]} Rxc8 {[%emt 0:01:23]} 29. Rxc8 {[%emt 0:00:00]} Bxg2 {[%emt 0:00:15]} 30. Rc7+ {[%emt 0:00:00]} Ke6 {[%emt 0:00:09]} 31. f5+ {[%emt 0:00:00]} Kxf5 {[%emt 0:00:14]} 32. Rxf7 {[%emt 0:00:00]} Kg6 {[%emt 0:01:39]} 33. Ra7 {[%emt 0:00:00]} Bc6 {[%emt 0:00:58]} 34. Rg1+ {[%emt 0:00:00]} Kf5 {[%emt 0:00:30]} 35. Rgxg7 {[%emt 0:00:00] [#] Strongly threatening Ra5+.} Nd5+ {[%emt 0:00:10]} 36. Kd4 {[%emt 0:00:00] Weighted Error Value: White=0.04 (flawless) /Black=0.45} 1-0